bitfinex-derivatives/quotes_ETHF0:USTF0_20250331
["timestamp","ask_amount","ask_price","bid_price","bid_amount"]
[1743382364482,1.7141,1787.0,1786.8,7.6698]
[1743382364686,1.7141,1787.0,1786.8,8.7892]
[1743382364886,2.8334,1787.0,1786.8,7.6698]
[1743382365192,0.00839866,1787.2,1786.8,7.6698]
[1743382365387,0.00839866,1787.2,1787.1,4.32702]
[1743382365585,0.00839866,1787.2,1787.1,8.79502]
[1743382365892,1.7168,1787.4,1787.3,1.11909]
[1743382366189,2.83585,1787.4,1787.1,15.08693451]
[1743382366390,2.83585,1787.4,1787.1,8.79498]
[1743382366684,2.83583,1787.4,1787.3,3.2078]
[1743382366886,1.7168,1787.4,1787.3,3.2078]
[1743382367091,1.7168,1787.4,1787.3,4.32689]
[1743382367686,2.83583,1787.4,1787.3,3.2078]
[1743382367885,1.7168,1787.4,1787.2,1.11912]
[1743382368089,1.1191,1787.3,1787.1,8.80337866]
[1743382368388,3.2078,1787.7,1787.1,8.80337866]
[1743382368583,6.00497,1787.7,1787.1,8.80337866]
[1743382368784,1.11908,1787.4,1787.2,1.11915]
[1743382368981,1.11901,1787.5,1787.2,1.11915]
[1743382369184,1.11901,1787.5,1787.2,1.11911]
[1743382369385,3.2078,1787.7,1787.1,7.68419866]
[1743382369580,1.119,1787.5,1787.3,3.2078]
[1743382369785,1.6434,1787.8,1787.3,3.2078]
[1743382370093,1.1189,1787.6,1787.4,12.98770991]
[1743382371289,1.11893,1787.6,1787.4,5.588]
[1743382371492,1.11897,1787.5,1787.4,4.469]
[1743382371695,1.11893,1787.6,1787.4,5.58803]
[1743382372194,1.11894,1787.6,1787.4,5.58803]
[1743382372495,1.6434,1787.8,1787.4,4.469]
[1743382372697,1.11897,1787.5,1787.4,4.469]
[1743382373293,1.11894,1787.6,1787.4,4.469]
[1743382373490,1.11897,1787.5,1787.4,4.469]
[1743382374397,1.11881,1787.8,1787.5,1.11892]
[1743382374591,1.7023,1788.0,1787.5,3.2078]
[1743382374894,1.11836,1788.5,1788.3,1.11845]
[1743382375096,3.2078,1788.7,1788.3,4.49]
[1743382375392,1.1184,1788.4,1788.3,7.6978]
[1743382375798,1.11847,1788.3,1788.2,0.00839866]
[1743382376097,2.75087,1788.3,1788.2,0.00839866]
[1743382376398,1.6324,1788.3,1788.1,1.11857]
[1743382376593,4.8201,1788.8,1788.2,3.2078]
[1743382376793,1.11836,1788.5,1788.2,3.2078]
[1743382376988,7.6156,1788.8,1788.1,8.48089005]
[1743382377188,4.8201,1788.8,1788.3,4.488]
[1743382377395,0.00839866,1788.6,1788.3,4.49639866]
[1743382377997,0.00839866,1788.6,1788.4,10.50548602]
[1743382378197,0.00839866,1788.6,1788.4,3.2078]
[1743382378500,1.11834,1788.5,1788.4,3.2078]
[1743382378899,0.00839866,1788.6,1788.4,3.2078]
[1743382379103,1.12669866,1788.6,1788.4,4.9283]
[1743382379302,0.00839866,1788.6,1788.4,4.9283]
[1743382379599,0.00839866,1788.6,1788.4,6.04669]
[1743382379893,3.2078,1789.4,1788.5,7.32431088]
[1743382380093,6.5474,1789.4,1788.9,4.32586]
[1743382380295,1.11792,1789.2,1789.0,6.2515]
[1743382380486,1.11811,1788.9,1788.7,3.2078]
[1743382380686,3.2078,1789.0,1788.4,64.1358]
[1743382380893,1.1182,1788.8,1788.5,1.1183]
[1743382381101,1.11822,1788.7,1788.5,1.7465]
[1743382381601,1.11828,1788.6,1788.4,64.1358]
[1743382381897,4.9479,1788.9,1788.4,65.2542]
[1743382382089,4.9479,1788.9,1788.4,64.1358]
[1743382382491,1.1183,1788.6,1788.4,64.1358]
[1743382382894,1.11834,1788.5,1788.4,56.389]
[1743382383091,1.1184,1788.4,1788.3,0.00839866]
[1743382383292,2.79623,1788.3,1787.6,10.60619]
[1743382383493,4.9547,1788.2,1787.6,9.4873]
[1743382383693,2.84911,1788.4,1788.1,1.11854]
[1743382383893,1.11848,1788.3,1788.0,5.67863]
[1743382384088,1.11859,1788.1,1788.0,4.56]
[1743382384297,4.9385,1788.4,1788.0,4.56]
[1743382384499,4.9385,1788.4,1788.0,5.67863]
[1743382384500,0.00839866,1788.2,1788.0,5.67863]
[1743382384796,1.11865,1788.0,1787.9,0.00839866]
[1743382384996,1.11865,1788.0,1787.9,4.56939866]
[1743382385203,1.11862,1788.1,1787.9,4.56939866]
[1743382385394,0.00839866,1788.2,1787.9,6.29829866]
[1743382385598,0.00839866,1788.2,1787.9,4.56939866]
[1743382385901,1.11865,1788.0,1787.9,4.56939866]
[1743382386197,0.00839866,1788.2,1788.1,1.11859]
[1743382386403,0.00839866,1788.2,1788.1,4.32639]
[1743382386701,0.00839866,1788.2,1788.1,3.2078]
[1743382387102,1.73349866,1788.2,1788.1,3.2078]
[1743382387395,2.85202866,1788.2,1788.1,3.2078]
[1743382387802,2.85202866,1788.2,1787.9,9.50609866]
[1743382387803,1.11859,1788.1,1787.9,9.50609866]
[1743382388103,2.84375,1788.0,1787.9,9.50609866]
[1743382388305,1.7251,1788.0,1787.9,9.50609866]
[1743382388692,2.84375,1788.0,1787.9,3.21619866]
[1743382388898,2.84375,1788.0,1787.9,7.78219866]
[1743382389295,2.84375,1788.0,1787.9,3.21619866]
[1743382389501,2.84375,1788.0,1787.9,0.00839866]
[1743382390702,1.11884,1787.7,1787.6,4.561]
[1743382390894,1.1189,1787.6,1787.5,56.376]
[1743382391199,2.8216,1787.6,1787.5,56.376]
[1743382392003,1.11897,1787.5,1787.4,0.00839866]
[1743382392199,2.82167,1787.5,1787.4,0.00839866]
[1743382394606,1.7027,1787.5,1787.4,0.00839866]
[1743382394806,4.935,1787.7,1787.4,4.12319866]
[1743382394807,3.2078,1787.7,1787.4,4.12319866]
[1743382395100,1.11882,1787.8,1787.5,1.11893]
[1743382395305,2.77074,1787.7,1787.6,6.1448]
[1743382395705,2.77074,1787.7,1787.6,4.53]
[1743382395905,1.6519,1787.7,1787.6,8.8567]
[1743382396704,1.11861,1788.1,1787.6,17.60902718]
[1743382396899,1.7029,1788.1,1787.8,3.2078]
[1743382397207,2.82151,1788.1,1787.9,5.63969]
[1743382397413,1.11865,1788.0,1787.9,4.521]
[1743382399114,1.11872,1787.9,1787.8,3.2078]
[1743382399413,1.11878,1787.8,1787.7,4.504]
[1743382399713,1.11884,1787.7,1787.6,3.2078]
[1743382400306,1.1189,1787.6,1787.5,4.502]
[1743382401813,1.11897,1787.5,1787.4,0.00839866]
[1743382403315,3.4045,1787.7,1787.4,0.00839866]
[1743382403502,4.52337,1787.7,1787.5,1.11894]
[1743382403707,1.7525,1787.7,1787.4,1.63349866]
[1743382404003,1.7525,1787.7,1787.6,1.1189]
[1743382404201,1.7525,1787.7,1787.6,5.5899]
[1743382404410,1.7525,1787.7,1787.6,7.215]
[1743382404909,2.87134,1787.7,1787.6,4.471]
[1743382405907,1.7525,1787.7,1787.6,5.5899]
[1743382407014,2.87134,1787.7,1787.6,4.471]
[1743382407211,1.1189,1787.6,1787.5,3.2078]
[1743382407509,2.7244,1787.6,1787.5,7.6548]
[1743382408017,2.79744,1787.5,1787.0,4.448]
[1743382408317,1.11915,1787.3,1787.1,1.11922]
[1743382408513,1.11922,1787.1,1787.0,4.448]
[1743382409015,1.11928,1787.0,1786.9,56.375]
[1743382409313,1.11928,1787.0,1786.9,56.38339866]
[1743382409716,1.11928,1787.0,1786.9,0.00839866]
[1743382411207,4.83789866,1787.2,1786.9,0.00839866]
[1743382411403,1.11928,1787.0,1786.9,0.00839866]
[1743382412311,1.11953,1786.6,1786.4,4.32743]
[1743382412512,1.11951,1786.7,1786.5,4.424]
[1743382412708,1.6322,1786.6,1786.5,4.424]
[1743382412910,2.75173,1786.6,1786.5,4.424]
[1743382413110,1.6322,1786.6,1786.5,5.54359]
[1743382413614,3.21619866,1787.2,1786.5,4.424]
[1743382413815,1.6322,1786.9,1786.8,1.1194]
[1743382414117,1.12757866,1787.2,1787.0,1.11925]
[1743382414319,1.12760866,1787.2,1786.9,2.76569]
[1743382414618,0.00839866,1787.2,1787.1,1.11922]
[1743382414823,1.11894,1787.6,1787.1,6.0634]
[1743382415118,1.11894,1787.6,1787.3,3.2078]
[1743382415318,1.11897,1787.5,1787.4,6.0634]
[1743382415505,1.11897,1787.5,1787.4,4.417]
[1743382415711,1.11909,1787.3,1787.2,4.413]
[1743382416112,1.11909,1787.3,1787.1,4.8542]
[1743382416113,1.11909,1787.3,1787.1,5.98179866]
[1743382416307,1.11915,1787.2,1787.1,3.21619866]
[1743382416710,1.11915,1787.2,1787.1,0.00839866]
[1743382416921,4.32685,1787.4,1787.1,0.00839866]
[1743382417109,1.11915,1787.2,1787.1,0.00839866]
[1743382417310,3.21619866,1787.6,1787.1,0.00839866]
[1743382417513,1.11915,1787.2,1787.1,0.00839866]
[1743382421917,6.31745,1787.2,1787.1,0.00839866]
[1743382423618,1.11942,1786.8,1786.6,10.4027]
[1743382423812,2.76407,1786.7,1786.6,9.2832]
[1743382424020,1.6446,1786.7,1786.6,8.69533]
[1743382424422,1.6446,1786.7,1786.6,7.5758]
[1743382424623,2.76407,1786.7,1786.6,7.5758]
[1743382424826,1.6446,1786.7,1786.6,8.69533]
[1743382425526,2.76407,1786.7,1786.6,7.5758]
[1743382425724,2.76407,1786.7,1786.5,0.00839866]
[1743382425725,1.11953,1786.6,1786.5,0.00839866]
[1743382425922,1.11965,1786.4,1786.3,56.404]
[1743382426117,1.11972,1786.3,1786.2,3.2078]
[1743382426829,1.7349,1786.4,1786.0,1.11988]
[1743382427025,2.8547,1786.2,1786.0,4.32768]
[1743382427231,2.8547,1786.2,1786.0,5.99767866]
[1743382427430,2.85472,1786.2,1786.0,5.99769866]
[1743382427723,1.7349,1786.2,1786.1,1.11984]
[1743382427920,0.00839866,1786.4,1786.0,4.87779866]
[1743382428121,0.00839866,1786.4,1786.3,1.11972]
[1743382428324,0.00839866,1786.4,1786.3,5.46872]
[1743382428631,2.85441,1786.7,1786.6,1.11953]
[1743382428632,1.7349,1786.7,1786.6,1.11953]
[1743382429629,1.7349,1786.7,1786.6,4.32733]
[1743382430031,2.85437,1786.7,1786.6,3.2078]
[1743382431133,1.7349,1786.7,1786.6,4.32733]
[1743382433222,0.00839866,1786.8,1786.7,1.11947]
[1743382433429,0.00839866,1786.8,1786.7,2.86967]
[1743382435536,1.6304,1787.2,1786.7,1.7502]
[1743382435838,1.6726,1787.1,1787.0,4.32705]
[1743382436436,1.11918,1787.2,1787.0,5.92944]
[1743382436734,2.79182,1787.1,1787.0,1.6024]
[1743382436929,1.6726,1787.1,1787.0,2.72168]
[1743382437739,0.00839866,1787.2,1787.1,1.11922]
[1743382437939,1.68099866,1787.2,1787.0,2.72163]
[1743382438131,2.80017866,1787.2,1787.0,2.72163]
[1743382438743,2.80017866,1787.2,1787.0,2.72165]
[1743382439134,1.68099866,1787.2,1787.1,1.11922]
[1743382439437,1.11928,1787.0,1786.9,0.00839866]
[1743382439741,4.32708,1787.0,1786.9,0.00839866]
[1743382440130,1.1195,1786.7,1786.5,5.42755]
[1743382440530,1.7095,1786.6,1786.4,61.2255]
[1743382440736,1.11959,1786.5,1786.4,59.6208]
[1743382442134,2.82906,1786.6,1786.4,59.6208]
[1743382442437,1.11959,1786.5,1786.4,59.6208]
[1743382442639,2.74129,1786.5,1786.4,56.413]
[1743382442835,1.6217,1786.5,1786.4,60.74045]
[1743382443027,1.6217,1786.8,1786.7,1.11947]
[1743382443635,1.6217,1786.8,1786.7,1.6738]
[1743382443843,1.6217,1786.8,1786.7,2.79327]
[1743382444038,3.2676,1787.1,1786.7,2.79327]
[1743382444039,3.2676,1787.1,1787.0,1.11928]
[1743382444238,4.8893,1787.1,1787.0,1.11928]
[1743382444444,1.6217,1787.1,1787.0,4.32708]
[1743382444640,1.6217,1787.1,1787.0,5.91488]
[1743382445040,1.11928,1787.0,1786.9,4.308]
[1743382445239,1.6217,1787.1,1786.8,4.308]
[1743382445441,2.82954,1786.9,1786.8,4.308]
[1743382446641,1.11959,1786.5,1786.4,63.9288]
[1743382446839,1.11959,1786.5,1786.4,60.721]
[1743382447036,1.11965,1786.4,1786.3,0.00839866]
[1743382447240,2.82985,1786.4,1786.3,0.00839866]
[1743382451754,2.82985,1786.4,1786.3,4.33591866]
[1743382451755,1.7102,1786.4,1786.3,4.33591866]
[1743382452043,3.3576,1787.0,1786.3,4.33591866]
[1743382452044,3.3576,1787.0,1786.5,2.79899]
[1743382452247,1.11925,1787.1,1786.8,1.1194]
[1743382452435,2.78045,1787.1,1786.9,1.7373]
[1743382452642,2.78045,1787.1,1786.9,2.85663]
[1743382452847,0.00839866,1787.2,1786.9,9.2531]
[1743382453049,0.00839866,1787.2,1787.1,4.32702]
[1743382453246,0.00839866,1787.2,1787.1,3.2078]
[1743382453446,0.00839866,1787.2,1787.1,1.7373]
[1743382453752,2.78264866,1787.2,1787.0,1.11924]
[1743382453952,1.11925,1787.1,1786.9,7.5158]
[1743382454153,2.77438,1787.0,1786.9,7.5158]
[1743382454653,1.6551,1787.0,1786.9,7.5158]
[1743382454847,2.77438,1787.0,1786.9,7.5158]
[1743382455251,2.77438,1787.0,1786.9,3.2078]
[1743382455448,1.11945,1786.8,1786.7,7.5158]
[1743382455854,1.11938,1786.9,1786.7,7.5158]
[1743382456048,1.6551,1786.8,1786.7,8.63527]
[1743382456248,1.6551,1786.8,1786.7,10.30627]
[1743382456958,1.11933,1787.0,1786.8,1.11938]
[1743382457154,1.7555,1786.9,1786.8,1.11938]
[1743382457360,0.00839866,1787.2,1787.1,1.11922]
[1743382457653,2.88304866,1787.2,1787.0,5.42625]
[1743382457858,2.88304866,1787.2,1787.1,4.307]
[1743382458156,2.88304866,1787.2,1786.8,7.3059557]
[1743382458157,1.11929,1787.0,1786.8,4.307]
[1743382458356,2.87484,1786.9,1786.8,4.307]
[1743382458653,1.7555,1786.9,1786.8,5.4264]
[1743382460256,0.00839866,1787.2,1787.1,1.11922]
[1743382460460,0.00839866,1787.2,1787.1,5.42622]
[1743382460859,4.33534866,1787.2,1787.1,4.307]
[1743382461159,4.33534866,1787.2,1787.1,8.63402]
[1743382461160,1.70089866,1787.2,1787.1,8.63402]
[1743382461354,0.00839866,1787.2,1787.1,8.63402]
[1743382461751,1.12754866,1787.2,1787.1,3.2078]
[1743382461960,1.11934,1786.9,1786.8,7.5148]
[1743382462258,1.11931,1787.0,1786.8,8.6342]
[1743382462465,2.81184,1786.9,1786.8,7.5148]
[1743382462867,2.81184,1786.9,1786.8,4.307]
[1743382463868,1.6925,1786.9,1786.8,5.4264]
[1743382464166,1.1194,1786.8,1786.7,4.307]
[1743382464667,2.81189,1786.9,1786.7,5.42647]
[1743382464861,1.6925,1786.9,1786.8,1.1194]
[1743382465067,1.1194,1786.8,1786.7,4.307]
[1743382466163,2.81188,1786.9,1786.7,5.42647]
[1743382466362,1.1194,1786.8,1786.7,4.307]
[1743382466566,2.8505,1786.8,1786.7,4.307]
[1743382468369,2.8505,1786.8,1786.7,5.42647]
[1743382468563,4.9389,1786.8,1786.4,3.2078]
[1743382468871,4.9389,1786.8,1786.4,7.5148]
[1743382468872,1.1196,1786.5,1786.4,7.5148]
[1743382470170,1.8524,1786.6,1786.3,0.00839866]
[1743382470171,1.11965,1786.4,1786.3,0.00839866]
[1743382470370,2.97205,1786.4,1786.3,0.00839866]
[1743382470963,1.8524,1786.4,1786.0,3.2078]
[1743382471171,1.11996,1786.0,1785.7,3.46876]
[1743382471374,1.8524,1785.9,1785.8,5.42703]
[1743382471665,1.12028,1785.5,1784.9,56.416]
[1743382471871,1.12031,1785.4,1785.2,3.2078]
[1743382472167,0.00839866,1785.5,1785.2,4.32818]
[1743382472363,1.12864866,1785.5,1785.3,5.42734]
[1743382472563,2.91918,1785.4,1785.3,4.307]
[1743382473065,1.7989,1785.4,1785.3,4.307]
[1743382473465,2.91918,1785.4,1785.3,4.307]
[1743382473660,1.7989,1785.4,1785.3,4.307]
[1743382473860,0.00839866,1785.5,1785.4,1.12028]
[1743382474064,1.7872,1785.8,1785.6,1.1201]
[1743382474065,1.7989,1785.8,1785.6,1.1201]
[1743382474266,1.7989,1785.8,1785.7,4.32789]
[1743382474566,1.11984,1786.1,1785.9,1.11994]
[1743382474770,1.11984,1786.1,1785.9,4.307]
[1743382474969,3.00841,1786.0,1785.9,4.307]
[1743382475372,1.8885,1786.0,1785.9,8.63477]
[1743382475772,1.8885,1786.0,1785.9,7.5148]
[1743382475973,1.8885,1786.0,1785.9,8.63477]
[1743382476174,0.00839866,1786.1,1786.0,1.11991]
[1743382476379,1.89689866,1786.1,1786.0,1.11991]
[1743382476762,4.32735,1786.6,1786.0,2.5]
[1743382476970,1.8885,1786.5,1786.4,1.11965]
[1743382477273,3.00809,1786.5,1786.4,4.308]
[1743382477976,3.00809,1786.5,1786.2,3.2078]
[1743382477977,1.11972,1786.3,1786.2,7.5158]
[1743382478271,1.11972,1786.3,1786.2,4.308]
[1743382479173,1.11978,1786.2,1786.1,0.00839866]
[1743382479372,6.0074,1786.2,1785.6,3.2078]
[1743382479676,1.12018,1785.6,1785.4,6.2044]
[1743382479873,6.00759,1786.0,1785.4,6.2044]
[1743382479874,1.7592,1785.5,1785.4,7.32468]
[1743382480079,1.7592,1785.5,1785.4,6.2044]
[1743382480571,1.7592,1785.5,1785.4,7.32468]
[1743382481170,0.00839866,1785.6,1785.5,1.12022]
[1743382481376,0.00839866,1785.6,1785.5,6.11542]
[1743382485581,0.00839866,1785.6,1785.5,13.32995682]
[1743382485979,0.00839866,1785.6,1785.5,6.11542]
[1743382487580,0.00839866,1785.6,1785.3,7.52419866]
[1743382487788,1.12028,1785.4,1785.3,7.52419866]
[1743382488084,1.12028,1785.4,1785.3,3.21619866]
[1743382488286,2.92686,1785.5,1785.3,4.33653866]
[1743382488679,1.8066,1785.5,1785.4,1.12028]
[1743382488884,1.8066,1785.5,1785.3,4.33651866]
[1743382488885,2.92686,1785.5,1785.3,4.33651866]
[1743382489086,1.12028,1785.4,1785.3,3.21619866]
[1743382489289,1.8066,1785.4,1785.3,4.33653866]
[1743382489986,2.92688,1785.4,1785.3,3.21619866]
[1743382490589,2.92688,1785.4,1785.3,0.00839866]
[1743382495690,1.8066,1785.4,1785.3,4.33653866]
[1743382495880,0.00839866,1785.6,1785.5,1.12022]
[1743382496193,1.88449866,1785.6,1785.5,1.12022]
[1743382496684,1.88449866,1785.6,1785.4,1.8716]
[1743382496992,1.12028,1785.4,1785.3,7.52419866]
[1743382497389,1.12028,1785.4,1785.3,8.64453866]
[1743382497590,1.12028,1785.4,1785.3,0.00839866]
[1743382497779,1.12028,1785.4,1785.3,1.12873866]
[1743382497987,1.12028,1785.4,1785.3,3.21619866]
[1743382498188,1.12022,1785.5,1785.3,4.33653866]
[1743382498487,1.12028,1785.4,1785.3,0.00839866]
[1743382498683,1.8761,1785.4,1785.3,4.33653866]
[1743382499997,0.00839866,1785.6,1785.5,1.12022]
[1743382500186,1.12855866,1785.6,1785.5,3.2078]
[1743382500387,2.91445866,1785.6,1785.5,3.2078]
[1743382500587,1.79429866,1785.6,1785.5,3.2078]
[1743382500782,2.91445866,1785.6,1785.5,3.2078]
[1743382501195,1.79429866,1785.6,1785.5,4.32802]
[1743382501396,2.91445866,1785.6,1785.5,3.2078]
[1743382501788,1.79429866,1785.6,1785.5,4.32802]
[1743382501986,3.2078,1786.3,1785.8,1.12003]
[1743382502292,10.77418549,1786.8,1786.1,4.32764]
[1743382502487,3.6735,1786.5,1786.1,8.63564]
[1743382502693,3.6735,1786.5,1786.1,8.0758]
[1743382502991,1.8948,1786.7,1786.1,8.0758]
[1743382502992,1.8948,1786.7,1786.5,1.11955]
[1743382503198,3.6711,1786.7,1786.5,3.2078]
[1743382503396,4.79057,1786.7,1786.5,4.32737]
[1743382503593,4.79057,1786.7,1786.5,6.24027]
[1743382503784,4.79057,1786.7,1786.5,1.9129]
[1743382503785,1.11953,1786.6,1786.5,1.9129]
[1743382503986,2.89583,1786.6,1786.4,4.308]
[1743382504190,1.7763,1786.6,1786.4,5.42761]
[1743382504392,1.7763,1786.6,1786.4,7.34051]
[1743382504690,1.7763,1786.6,1786.5,3.2078]
[1743382505799,2.89583,1786.6,1786.5,3.2078]
[1743382505992,1.11965,1786.4,1786.3,3.2078]
[1743382506195,1.9172,1786.5,1786.3,3.2078]
[1743382506392,2.93975,1786.4,1786.3,3.2078]
[1743382507096,1.8201,1786.4,1786.1,0.00839866]
[1743382507303,2.93979,1786.4,1786.1,4.33597866]
[1743382507495,1.8201,1786.4,1786.3,4.32752]
[1743382507697,2.93975,1786.4,1786.2,1.11978]
[1743382508191,2.93975,1786.4,1786.1,6.12969866]
[1743382508393,1.11978,1786.2,1786.1,5.00989866]
[1743382508594,1.11978,1786.2,1786.1,3.21619866]
[1743382512199,1.11997,1785.9,1785.8,4.305]
[1743382512699,1.12009,1785.7,1785.6,3.2078]
[1743382513595,1.8332,1785.7,1785.6,4.32796]
[1743382513789,1.8332,1785.7,1785.6,6.25256]
[1743382514199,2.95329,1785.7,1785.6,3.2078]
[1743382515098,1.12037,1785.3,1785.1,5.42545]
[1743382515294,1.12027,1785.5,1785.1,6.1634]
[1743382515493,5.041,1785.7,1785.2,1.8584]
[1743382515494,1.7771,1785.4,1785.2,1.8584]
[1743382515710,2.8974,1785.4,1785.2,2.97878]
[1743382516593,3.2078,1785.7,1785.1,0.00839866]
[1743382516799,1.12066,1784.8,1784.7,1.8584]
[1743382517096,1.12072,1784.7,1784.5,5.42584]
[1743382517304,1.8059,1784.7,1784.4,1.12088]
[1743382517492,2.92666,1784.7,1784.4,5.42588]
[1743382517696,2.92666,1784.7,1784.4,7.23698]
[1743382518096,1.12081,1784.6,1784.4,6.12169908]
[1743382518298,2.92671,1784.6,1784.4,7.24259908]
[1743382518491,2.92671,1784.6,1784.4,6.12169908]
[1743382518895,2.92671,1784.6,1784.4,7.24259908]
[1743382519098,2.92672,1784.6,1784.4,6.12169908]
[1743382519297,1.12085,1784.5,1784.4,6.12169908]
[1743382519605,1.12085,1784.5,1784.4,1.81669908]
[1743382519606,1.8059,1784.5,1784.4,1.81669908]
[1743382519797,1.8059,1784.5,1784.4,2.93760908]
[1743382519993,1.8059,1784.5,1784.4,1.81669908]
[1743382520596,1.8059,1784.5,1784.4,2.93760908]
[1743382520799,0.00839866,1784.7,1784.6,1.12078]
[1743382521097,1.9365,1785.0,1784.6,8.63458]
[1743382521098,3.2078,1785.0,1784.6,8.63458]
[1743382521300,1.7814,1785.3,1784.8,3.2078]
[1743382521500,3.2078,1785.8,1785.1,3.2078]
[1743382521706,1.12034,1785.3,1785.2,6.1595]
[1743382521897,1.12034,1785.3,1785.1,4.306]
[1743382522096,3.2078,1785.5,1785.1,4.306]
[1743382522393,0.00839866,1785.4,1785.0,1.86189866]
[1743382522599,4.32827,1785.1,1785.0,0.00839866]
[1743382523197,1.12072,1784.7,1784.6,6.1595]
[1743382523609,1.12072,1784.7,1784.6,1.8535]
[1743382525102,3.2078,1784.9,1784.6,1.8535]
[1743382525308,1.12072,1784.7,1784.6,1.8535]
[1743382527400,3.02332,1784.7,1784.6,1.8535]
[1743382529809,1.12078,1784.6,1784.5,0.00559908]
[1743382530008,1.7991,1784.8,1784.5,3.03354908]
[1743382530310,1.12078,1784.7,1784.5,3.03354908]
[1743382530605,6.83985201,1800.9,1784.5,3.03354908]
[1743382530606,3.21619866,1785.4,1784.6,3.2078]
[1743382530809,0.00839866,1785.4,1785.0,3.2078]
[1743382531005,3.2078,1785.9,1785.2,6.00882]
[1743382531200,1.862,1786.1,1785.6,3.2078]
[1743382531401,1.12003,1785.8,1785.7,1.9071]
[1743382531811,3.2078,1786.0,1785.6,7.5138]
[1743382532012,1.12007,1785.8,1785.6,7.5138]
[1743382532202,1.12007,1785.8,1785.7,1.9071]
[1743382532808,1.12009,1785.7,1785.6,0.00839866]
[1743382533009,4.95289,1785.7,1785.6,0.00839866]
[1743382533508,1.12006,1785.8,1785.6,0.00839866]
[1743382533712,1.12009,1785.7,1785.6,0.00839866]
[1743382535312,3.21619866,1786.0,1785.6,0.00839866]
[1743382535521,1.12007,1785.8,1785.6,1.90279866]
[1743382535809,1.12009,1785.7,1785.6,1.90279866]
[1743382536206,1.12007,1785.8,1785.6,1.90279866]
[1743382536721,1.12007,1785.8,1785.6,7.32793866]
[1743382537106,1.12007,1785.8,1785.7,1.8944]
[1743382537912,0.00839866,1786.0,1785.9,1.11997]
[1743382538218,0.00839866,1786.0,1785.9,4.32777]
[1743382538415,0.00839866,1786.0,1785.9,8.63177]
[1743382539120,1.12830866,1786.0,1785.9,7.5118]
[1743382539511,1.12830866,1786.0,1785.9,3.2078]
[1743382540111,1.12003,1785.8,1785.7,8.079]
[1743382540418,0.00839866,1786.0,1785.7,8.079]
[1743382540613,1.12,1785.9,1785.7,9.19908]
[1743382541113,0.00839866,1786.0,1785.7,8.079]
[1743382541613,1.12003,1785.9,1785.7,9.19906]
[1743382541821,0.00839866,1786.0,1785.7,9.19906]
[1743382541822,1.12832866,1786.0,1785.8,1.12001]
[1743382542020,1.12832866,1786.0,1785.9,1.7544]
[1743382544717,0.00839866,1786.0,1785.9,1.7544]
[1743382544918,0.00839866,1786.0,1785.9,2.87437]
[1743382545121,3.2078,1786.8,1786.2,2.79945]
[1743382545316,3.2078,1786.8,1786.4,3.2078]
[1743382545516,1.11938,1786.9,1786.7,4.32723]
[1743382545712,1.11938,1786.9,1786.8,1.8091]
[1743382547112,0.00839866,1787.0,1786.8,2.92845]
[1743382547318,0.00839866,1787.0,1786.9,2.92844]
[1743382547524,0.00839866,1787.0,1786.9,3.48844]
[1743382547819,0.00839866,1787.0,1786.9,1.8091]
[1743382548019,0.00839866,1787.0,1786.9,2.92844]
[1743382548419,0.00839866,1787.0,1786.9,1.8091]
[1743382548619,0.00839866,1787.0,1786.9,2.92844]
[1743382549523,0.00839866,1787.0,1786.9,1.8091]
[1743382549722,1.12767866,1787.0,1786.9,1.8091]
[1743382549921,0.00839866,1787.0,1786.9,2.92844]
[1743382550115,1.8381,1787.5,1787.2,1.11914]
[1743382550116,1.9106,1787.4,1787.2,1.11914]
[1743382550320,1.8381,1787.5,1787.3,3.02877]
[1743382550521,1.9106,1787.5,1787.4,3.02873]
[1743382550721,4.32667,1787.7,1787.4,6.2097]
[1743382551020,3.65,1788.0,1787.5,3.2078]
[1743382551221,3.2078,1788.1,1787.6,1.7649]
[1743382551428,1.11874,1787.9,1787.7,4.3]
[1743382551622,1.11884,1787.7,1787.6,0.00839866]
[1743382551823,1.11884,1787.7,1787.6,1.77329866]
[1743382552024,2.95551,1787.8,1787.6,1.77329866]
[1743382552226,1.11884,1787.7,1787.6,1.77329866]
[1743382552624,2.95551,1787.8,1787.6,1.77329866]
[1743382552819,1.8367,1787.8,1787.6,1.77329866]
[1743382553223,4.32664,1787.7,1787.6,1.77329866]
[1743382553526,4.32664,1787.7,1787.6,0.00839866]
[1743382555035,3.2078,1787.7,1787.6,0.00839866]
[1743382555336,2.95551,1787.8,1787.6,4.30639866]
[1743382555529,6.16331,1787.8,1787.7,1.8862]
[1743382556439,1.11884,1787.7,1787.6,4.30639866]
[1743382556634,3.06084,1787.7,1787.6,4.30639866]
[1743382557038,1.942,1787.7,1787.6,4.30639866]
[1743382557533,3.06084,1787.7,1787.6,4.30639866]
[1743382557933,1.11884,1787.7,1787.6,4.30639866]
[1743382558128,4.32662,1787.8,1787.6,4.30639866]
[1743382558332,4.32662,1787.8,1787.7,1.9332]
[1743382558532,2.89642,1787.9,1787.7,3.052]
[1743382558739,1.11878,1787.8,1787.7,1.9332]
[1743382558933,2.89648,1787.8,1787.7,1.9332]
[1743382559839,1.11884,1787.7,1787.6,4.30539866]
[1743382560142,1.11882,1787.8,1787.6,5.42429866]
[1743382560441,1.11882,1787.8,1787.7,1.8012]
[1743382560634,1.11884,1787.7,1787.6,4.30539866]
[1743382560835,1.11884,1787.7,1787.6,0.00839866]
[1743382560836,3.02754,1787.7,1787.6,0.00839866]
[1743382561635,3.02754,1787.7,1787.6,1.12729866]
[1743382561636,1.9087,1787.7,1787.6,1.12729866]
[1743382561931,3.02754,1787.7,1787.6,1.80959866]